bitfinex-derivatives/quotes_BTCF0:USTF0_20260118
["timestamp","ask_amount","ask_price","bid_price","bid_amount"]
[1768706528979,0.010517,95121.0,95109.0,0.00231315]
[1768706533877,0.010517,95119.0,95109.0,0.00231315]
[1768706534179,0.010518,95117.0,95109.0,0.00231315]
[1768706534378,0.010517,95120.0,95109.0,0.00231315]
[1768706535280,0.21515089,95122.0,95109.0,0.00231315]
[1768706538180,0.010517,95121.0,95109.0,0.00231315]
[1768706541385,0.010517,95119.0,95109.0,0.00231315]
[1768706541775,0.010518,95117.0,95109.0,0.00231315]
[1768706542778,0.010518,95115.0,95104.0,0.00231326]
[1768706542986,0.00925993,95116.0,95104.0,0.00231326]
[1768706543780,0.010518,95115.0,95104.0,0.00231326]
[1768706544485,0.01977793,95116.0,95104.0,0.00231326]
[1768706544778,0.00925993,95115.0,95104.0,0.00231326]
[1768706545979,0.09186733,95116.0,95104.0,0.00231326]
[1768706547086,0.00925993,95119.0,95105.0,0.03773285]
[1768706551285,0.00925993,95119.0,95106.0,0.03773285]
[1768706551492,0.10238433,95121.0,95106.0,0.03773285]
[1768706552186,0.10238433,95121.0,95107.0,0.03773285]
[1768706552986,0.10238433,95121.0,95106.0,0.03773285]
[1768706555687,0.010517,95119.0,95106.0,0.03773285]
[1768706556591,0.010517,95119.0,95105.0,0.03773285]
[1768706558192,0.010517,95119.0,95106.0,0.03773285]
[1768706559290,0.09186733,95121.0,95106.0,0.03773285]
[1768706560495,0.010517,95120.0,95106.0,0.03773285]
[1768706561295,0.010517,95120.0,95113.0,0.02832038]
[1768706562290,0.010518,95118.0,95113.0,3.8e-07]
[1768706563204,0.010518,95118.0,95110.0,0.03773285]
[1768706563896,0.010518,95118.0,95109.0,0.03773285]
[1768706564394,0.10238433,95121.0,95110.0,0.03773285]
[1768706566597,0.10238433,95121.0,95108.0,0.03773285]
[1768706567099,0.010517,95119.0,95108.0,0.03773285]
[1768706568198,0.010517,95119.0,95109.0,0.03773285]
[1768706568391,0.010517,95119.0,95108.0,0.03773285]
[1768706569000,0.09186733,95121.0,95108.0,0.03773285]
[1768706569195,0.09186733,95121.0,95109.0,0.03773285]
[1768706571601,0.09186733,95121.0,95108.0,0.03773285]
[1768706572199,0.09186733,95121.0,95109.0,0.03773285]
[1768706575812,0.09186733,95121.0,95108.0,0.03773285]
[1768706576702,0.09186733,95121.0,95105.0,0.010519]
[1768706579098,0.010517,95120.0,95104.0,0.00231326]
[1768706581411,0.010517,95120.0,95104.0,0.04004611]
[1768706583009,0.010517,95120.0,95104.0,0.00231326]
[1768706583395,0.010517,95120.0,95104.0,0.01283226]
[1768706583810,0.09186733,95121.0,95104.0,0.01283226]
[1768706584410,0.09186733,95121.0,95106.0,0.010519]
[1768706586616,0.09186733,95121.0,95110.0,0.03773285]
[1768706593014,0.09186733,95121.0,95111.0,0.03773285]
[1768706593214,0.09186733,95121.0,95113.0,0.03773285]
[1768706595811,0.09073036,95126.0,95114.0,0.010518]
[1768706596021,0.09472,95125.0,95113.0,0.03773285]
[1768706596206,0.09472,95125.0,95112.0,0.03773285]
[1768706596407,0.18545036,95125.0,95112.0,0.03773285]
[1768706596608,0.18545036,95125.0,95114.0,0.03773285]
[1768706598312,0.18545036,95125.0,95113.0,0.03773285]
[1768706603618,0.18545036,95125.0,95114.0,0.010518]
[1768706605222,0.10773395,95124.0,95114.0,0.010518]
[1768706605721,0.10773395,95124.0,95114.0,0.04825085]
[1768706605924,0.10773395,95124.0,95117.0,0.03773285]
[1768706607125,0.10773395,95124.0,95116.0,0.03773285]
[1768706607925,0.10773395,95124.0,95116.0,0.01378566]
[1768706609722,0.00950963,95123.0,95116.0,0.01378566]
[1768706609919,0.10773395,95123.0,95116.0,0.01378566]
[1768706610227,0.10773395,95122.0,95111.0,0.05657871]
[1768706611323,0.09822432,95122.0,95111.0,0.05657871]
[1768706611619,0.09822432,95122.0,95110.0,0.05657871]
[1768706613120,0.09822432,95122.0,95109.0,0.010518]
[1768706613825,0.09822432,95122.0,95111.0,0.010518]
[1768706619431,0.09822432,95122.0,95108.0,0.010519]
[1768706623024,0.09822432,95122.0,95112.0,0.02832245]
[1768706623225,0.09822432,95122.0,95113.0,0.02832245]
[1768706626729,0.09822432,95122.0,95119.0,0.02832245]
[1768706630035,0.09822432,95122.0,95118.0,0.02832245]
[1768706630229,0.09822432,95122.0,95119.0,0.02832245]
[1768706640038,0.09822432,95122.0,95116.0,0.03776822]
[1768706643247,0.09822432,95122.0,95114.0,0.03776822]
[1768706644946,0.20523184,95124.0,95114.0,0.03776822]
[1768706651249,0.30230763,95124.0,95114.0,0.03776822]
[1768706651435,0.31142521,95124.0,95114.0,0.03776822]
[1768706653245,0.31142521,95124.0,95116.0,0.03776822]
[1768706653462,0.20091337,95124.0,95115.0,0.03776822]
[1768706654351,0.20091337,95124.0,95114.0,0.03776822]
[1768706663257,0.20091337,95124.0,95116.0,0.03776822]
[1768706666664,0.20091337,95124.0,95112.0,0.010518]
[1768706666855,0.20091337,95124.0,95110.0,0.010518]
[1768706667257,0.20091337,95124.0,95110.0,0.04828622]
[1768706667855,0.11051184,95120.0,95110.0,0.04828622]
[1768706668666,0.11051184,95120.0,95110.0,0.010518]
[1768706669667,0.11051184,95120.0,95109.0,0.03776822]
[1768706673271,0.11051184,95120.0,95109.0,0.010518]
[1768706676773,0.11051184,95120.0,95114.0,0.03776822]
[1768706676974,0.10137913,95123.0,95114.0,0.03776822]
[1768706683271,0.10137913,95123.0,95115.0,0.03776822]
[1768706683477,0.10137913,95123.0,95114.0,0.03776822]
[1768706683678,0.10137913,95123.0,95113.0,0.03776822]
[1768706693086,0.21189097,95123.0,95113.0,0.03776822]
[1768706693283,0.21189097,95123.0,95114.0,0.03776822]
[1768706693790,0.21189097,95123.0,95116.0,0.03776822]
[1768706694673,0.21189097,95123.0,95115.0,0.03776822]
[1768706695296,0.10137913,95123.0,95115.0,0.03776822]
[1768706697900,0.10137913,95123.0,95115.0,0.01382036]
[1768706700098,0.10137913,95123.0,95119.0,0.02834385]
[1768706703306,0.10137913,95123.0,95118.0,0.02834385]
[1768706706902,0.10137913,95123.0,95112.0,0.02834385]
[1768706713300,0.10137913,95123.0,95113.0,0.02834385]
[1768706713504,0.10137913,95123.0,95112.0,0.02834551]
[1768706713806,0.10137913,95123.0,95113.0,0.02834551]
[1768706714706,0.10137913,95123.0,95112.0,0.02834551]
[1768706716711,0.10137913,95123.0,95119.0,0.02834551]
[1768706718107,0.10137913,95123.0,95109.0,0.05657871]
[1768706718312,0.10137913,95123.0,95108.0,0.05657871]
[1768706723717,0.10137913,95123.0,95111.0,0.05657871]
[1768706726812,0.00903458,95127.0,95111.0,0.05657871]
[1768706727010,0.09472,95126.0,95111.0,0.05657871]
[1768706727905,0.18695523,95126.0,95115.0,0.037791]
[1768706730220,0.18695523,95126.0,95116.0,0.037791]
[1768706730710,0.18695523,95126.0,95117.0,0.037791]
[1768706731213,0.18695523,95126.0,95116.0,0.037791]
[1768706732115,0.17792065,95126.0,95116.0,0.037791]
[1768706732316,0.09472,95125.0,95117.0,0.048309]
[1768706732525,0.05011469,95125.0,95119.0,0.037791]
[1768706732822,0.00231266,95129.0,95119.0,0.037791]
[1768706733614,0.00231266,95129.0,95117.0,0.010518]
[1768706733814,0.00231266,95129.0,95117.0,0.048309]
[1768706734311,0.00231266,95129.0,95116.0,0.037791]
[1768706734514,0.00231266,95129.0,95119.0,0.010517]
[1768706734910,0.00231266,95129.0,95116.0,0.037791]
[1768706735113,0.00231266,95129.0,95119.0,0.010517]
[1768706735314,0.07822291,95138.0,95119.0,0.00999552]
[1768706735512,0.09472,95141.0,95120.0,0.00999552]
[1768706736118,0.1044972,95141.0,95120.0,0.00999552]
[1768706736419,0.1044972,95141.0,95121.0,0.010517]
[1768706737015,0.1044972,95141.0,95124.0,0.010517]
[1768706742624,0.18869463,95141.0,95124.0,0.010517]
[1768706744010,0.18869463,95141.0,95126.0,0.010517]
[1768706744215,0.09472,95141.0,95131.0,0.010516]
[1768706745229,0.09396103,95145.0,95131.0,0.010516]
[1768706745417,0.09396103,95145.0,95133.0,0.010516]
[1768706745614,0.0097636,95150.0,95133.0,0.010516]
[1768706745820,0.1998,95151.0,95140.0,0.010515]
[1768706747722,0.00982191,95156.0,95142.0,0.010515]
[1768706747919,0.09401934,95163.0,95141.0,0.00999552]
[1768706748121,0.10988417,95169.0,95141.0,0.00999552]
[1768706748122,0.09401934,95161.0,95142.0,0.010515]
[1768706748323,0.08419743,95161.0,95143.0,0.00999552]
[1768706748525,0.09401934,95159.0,95140.0,0.010515]
[1768706748724,0.010513,95162.0,95141.0,0.0915788]
[1768706748926,0.010513,95162.0,95142.0,0.00999552]
[1768706749143,0.09401934,95161.0,95142.0,0.00999552]
[1768706749723,0.09401934,95160.0,95140.0,0.010515]
[1768706750127,0.09401934,95160.0,95142.0,0.010515]
[1768706752825,0.09401934,95160.0,95145.0,0.010514]
[1768706754631,0.08816229,95159.0,95141.0,0.010515]
[1768706755023,0.08816229,95158.0,95141.0,0.010515]
[1768706755224,0.09867529,95158.0,95138.0,0.10412658]
[1768706755731,0.09867529,95158.0,95138.0,0.09472]
[1768706755732,0.08816229,95155.0,95138.0,0.09472]
[1768706761941,0.08816229,95155.0,95139.0,0.010515]
[1768706763336,0.09867529,95155.0,95138.0,0.09472]
[1768706763544,0.08816229,95155.0,95138.0,0.09472]
[1768706764143,0.010514,95154.0,95138.0,0.09472]
[1768706764544,0.08816229,95155.0,95138.0,0.09472]
[1768706765941,0.08816229,95155.0,95139.0,0.010515]
[1768706766142,0.08816229,95155.0,95138.0,0.09472]
[1768706766841,0.08816229,95155.0,95139.0,0.037791]
[1768706767041,0.09867529,95155.0,95139.0,0.037791]
[1768706767246,0.010514,95153.0,95139.0,0.037791]
[1768706767448,0.07912892,95155.0,95139.0,0.037791]
[1768706767745,0.08816229,95159.0,95140.0,0.13034423]
[1768706768146,0.08816229,95159.0,95143.0,0.010515]
[1768706770745,0.0023118,95164.0,95149.0,0.11042265]
[1768706773248,0.0023118,95164.0,95147.0,0.01992058]
[1768706773650,0.0023118,95164.0,95150.0,0.11042265]
[1768706777352,0.0023118,95164.0,95147.0,0.01992058]
[1768706777749,0.0023118,95164.0,95150.0,0.11042265]
[1768706777956,0.0023118,95164.0,95151.0,0.02830507]
[1768706779358,0.0023118,95164.0,95150.0,0.13872772]
[1768706779657,0.0023118,95164.0,95151.0,0.02830507]
[1768706782261,0.0023118,95164.0,95150.0,0.13872772]
[1768706783453,0.0023118,95164.0,95151.0,0.02830507]
[1768706788564,0.0023118,95164.0,95151.0,0.00982243]
[1768706789067,0.0023118,95164.0,95150.0,0.010514]
[1768706789457,0.0023118,95164.0,95148.0,0.00934862]
[1768706790166,0.0023118,95164.0,95149.0,0.010514]
[1768706790356,0.0023118,95164.0,95149.0,0.01986262]
[1768706791265,0.0023118,95164.0,95151.0,0.00934862]
[1768706792166,0.0023118,95164.0,95152.0,0.00934862]
[1768706794663,0.0023118,95164.0,95150.0,0.0721648]
[1768706795066,0.0023118,95164.0,95150.0,0.08170011]
[1768706795465,0.0023118,95164.0,95150.0,0.09221411]
[1768706795868,0.0023118,95164.0,95151.0,0.00953531]
[1768706798270,0.10984417,95169.0,95155.0,0.00953531]
[1768706798465,0.10984417,95169.0,95156.0,0.00953531]
[1768706800673,0.09823917,95169.0,95156.0,0.00953531]
[1768706801357,0.09823917,95169.0,95154.0,0.010513]
[1768706801670,0.09823917,95169.0,95155.0,0.02921359]
[1768706801969,0.09823917,95169.0,95154.0,0.010513]
[1768706802286,0.09823917,95169.0,95155.0,0.02921376]
[1768706802471,0.09823917,95169.0,95154.0,0.02004831]
[1768706802666,0.09823917,95169.0,95155.0,0.02921333]
[1768706802971,0.09823917,95169.0,95156.0,0.02921333]
[1768706803171,0.09823917,95169.0,95154.0,0.02004831]
[1768706803367,0.09823917,95169.0,95155.0,0.02921274]
[1768706803575,0.09823917,95169.0,95156.0,0.02921274]
[1768706803783,0.09823917,95169.0,95154.0,0.02004831]
[1768706804075,0.09823917,95169.0,95155.0,0.02921267]
[1768706804275,0.10875117,95169.0,95156.0,0.02921267]
[1768706804476,0.10875117,95169.0,95154.0,0.00953531]
[1768706804776,0.10875117,95169.0,95155.0,0.02921226]
[1768706804972,0.10875117,95169.0,95156.0,0.02921226]
[1768706805173,0.10875117,95169.0,95154.0,0.00953531]
[1768706805476,0.10875117,95169.0,95155.0,0.02921201]
[1768706805674,0.10875117,95169.0,95156.0,0.02921201]
[1768706805874,0.10875117,95169.0,95154.0,0.00953531]
[1768706806177,0.10875117,95169.0,95155.0,0.02921201]
[1768706806371,0.10875117,95169.0,95151.0,0.02004931]
[1768706806571,0.10875117,95169.0,95152.0,0.02921192]
[1768706806773,0.10875117,95169.0,95151.0,0.02004931]
[1768706807777,0.010512,95166.0,95151.0,0.00953531]
[1768706809772,0.10875117,95169.0,95151.0,0.00953531]
[1768706812479,0.010512,95167.0,95151.0,0.00953531]
[1768706816279,0.00355917,95169.0,95151.0,0.02004931]
[1768706816477,0.11042265,95170.0,95151.0,0.02004931]
[1768706816785,0.07686134,95171.0,95153.0,0.037791]
[1768706816981,0.11042265,95170.0,95154.0,0.02925944]
[1768706817282,0.11042265,95170.0,95153.0,0.037791]
[1768706817283,0.08737334,95171.0,95155.0,0.02925944]
[1768706817575,0.08737334,95171.0,95156.0,0.02925944]
[1768706817768,0.08737334,95171.0,95157.0,0.02925944]
[1768706817973,0.08737334,95171.0,95158.0,0.02925944]
[1768706818173,0.08737334,95171.0,95153.0,0.048305]
[1768706818373,0.08737334,95171.0,95154.0,0.0292603]
[1768706818572,0.08737334,95171.0,95155.0,0.0292603]
[1768706818773,0.08737334,95171.0,95156.0,0.0292603]
[1768706818982,0.08737334,95171.0,95157.0,0.0292603]
[1768706819182,0.08737334,95171.0,95158.0,0.0292603]
[1768706819481,0.08737334,95171.0,95153.0,0.048305]
[1768706819682,0.08737334,95171.0,95155.0,0.037791]
[1768706819879,0.08737334,95171.0,95156.0,0.0292607]
[1768706820076,0.08737334,95171.0,95157.0,0.0292607]
[1768706820276,0.08737334,95171.0,95158.0,0.0292607]
[1768706820577,0.08737334,95171.0,95159.0,0.0292607]
[1768706820578,0.09869143,95171.0,95159.0,0.0292607]
[1768706820778,0.09869143,95171.0,95155.0,0.037791]
[1768706820977,0.09869143,95171.0,95156.0,0.02926118]
[1768706821181,0.010512,95169.0,95157.0,0.02926118]
[1768706821485,0.010512,95169.0,95158.0,0.02926118]
[1768706821781,0.010512,95169.0,95159.0,0.02926118]
[1768706821984,0.010512,95169.0,95155.0,0.037791]
[1768706822175,0.08817943,95171.0,95156.0,0.02906361]
[1768706822480,0.08817943,95171.0,95157.0,0.02906361]
[1768706822782,0.06756489,95170.0,95158.0,0.02906361]
[1768706822982,0.06756489,95170.0,95159.0,0.02906361]
[1768706823183,0.06756489,95170.0,95155.0,0.037791]
[1768706823384,0.07807689,95170.0,95156.0,0.0290639]
[1768706823584,0.07807689,95170.0,95157.0,0.0290639]
[1768706823877,0.010512,95168.0,95158.0,0.0290639]
[1768706824082,0.010512,95168.0,95159.0,0.0290639]
[1768706824383,0.010512,95168.0,95155.0,0.037791]
[1768706824584,0.010512,95168.0,95156.0,0.02906418]
[1768706824882,0.010512,95168.0,95157.0,0.02906418]
[1768706825072,0.010512,95168.0,95158.0,0.02906418]
[1768706825268,0.010512,95168.0,95159.0,0.02906418]
[1768706825469,0.010512,95168.0,95155.0,0.037791]
[1768706825671,0.010512,95168.0,95156.0,0.02906445]
[1768706825883,0.010512,95168.0,95157.0,0.02906445]
[1768706826187,0.010512,95168.0,95158.0,0.02906445]
[1768706826383,0.010512,95168.0,95159.0,0.02906445]
[1768706826676,0.010512,95168.0,95153.0,0.037791]
[1768706826873,0.010512,95168.0,95154.0,0.02906473]
[1768706827069,0.010512,95168.0,95155.0,0.02906473]
[1768706827284,0.010512,95168.0,95156.0,0.02906473]
[1768706827483,0.010512,95168.0,95157.0,0.02906473]
[1768706827784,0.010512,95168.0,95153.0,0.037791]
[1768706827984,0.010512,95168.0,95154.0,0.02906505]
[1768706828282,0.010512,95168.0,95155.0,0.02906505]
[1768706828483,0.010512,95168.0,95156.0,0.02906505]
[1768706828683,0.010512,95168.0,95157.0,0.02906505]
[1768706828879,0.010512,95168.0,95153.0,0.037791]
[1768706829184,0.010512,95168.0,95154.0,0.02906546]
[1768706829377,0.010512,95168.0,95155.0,0.02906546]
[1768706829576,0.010512,95168.0,95153.0,0.037791]
[1768706829577,0.010512,95168.0,95156.0,0.02906546]
[1768706829776,0.010512,95168.0,95151.0,0.04732631]
[1768706829984,0.010512,95168.0,95152.0,0.02906576]
[1768706830175,0.010512,95168.0,95153.0,0.02906576]
[1768706830376,0.06756489,95170.0,95154.0,0.02906576]
[1768706830587,0.06756489,95170.0,95155.0,0.02906576]
[1768706830885,0.06756489,95170.0,95156.0,0.02906576]
[1768706831086,0.06756489,95170.0,95151.0,0.04732631]
[1768706831286,0.06756489,95170.0,95152.0,0.0291123]
[1768706831587,0.010512,95169.0,95153.0,0.0291123]
[1768706831785,0.010512,95169.0,95154.0,0.0291123]
[1768706831987,0.010512,95169.0,95155.0,0.0291123]
[1768706832287,0.010512,95169.0,95156.0,0.0291123]
[1768706832488,0.010512,95169.0,95151.0,0.04732631]
[1768706832683,0.010512,95169.0,95152.0,0.03839508]
[1768706832877,0.010512,95169.0,95153.0,0.02909374]
[1768706833083,0.010512,95169.0,95154.0,0.02909374]
[1768706833387,0.010512,95169.0,95155.0,0.02909374]
[1768706833590,0.010512,95169.0,95156.0,0.02909374]
[1768706833795,0.010512,95169.0,95152.0,0.01981534]
[1768706834087,0.010512,95169.0,95153.0,0.02909394]
[1768706834285,0.010512,95169.0,95154.0,0.02909394]
[1768706834487,0.010512,95169.0,95155.0,0.02909394]
[1768706834689,0.010512,95169.0,95156.0,0.02909394]
[1768706834987,0.010512,95169.0,95152.0,0.00930134]
[1768706835188,0.010512,95169.0,95153.0,0.0290942]
[1768706835388,0.010512,95169.0,95154.0,0.0290942]
[1768706835587,0.010512,95169.0,95155.0,0.0290942]
[1768706835789,0.010512,95169.0,95156.0,0.0290942]
[1768706835990,0.010512,95167.0,95152.0,0.00930134]
[1768706836185,0.06756489,95170.0,95153.0,0.02909433]
[1768706836384,0.06756489,95170.0,95154.0,0.02909433]
[1768706836588,0.06756489,95170.0,95155.0,0.02909433]
[1768706836887,0.06756489,95170.0,95152.0,0.00930134]
[1768706837087,0.06756489,95170.0,95153.0,0.0290946]
[1768706837288,0.06756489,95170.0,95154.0,0.0290946]
[1768706837491,0.010512,95167.0,95155.0,0.0290946]
[1768706837678,0.010512,95167.0,95152.0,0.00930134]
[1768706837877,0.010512,95167.0,95153.0,0.02909455]
[1768706838082,0.010512,95167.0,95154.0,0.02909455]
[1768706838290,0.010512,95167.0,95155.0,0.02909455]
[1768706838492,0.010512,95167.0,95152.0,0.00930134]
[1768706838690,0.010512,95167.0,95153.0,0.02909463]
[1768706838886,0.010512,95167.0,95154.0,0.02909463]
[1768706839090,0.010512,95167.0,95155.0,0.02909463]
[1768706839291,0.010512,95167.0,95152.0,0.00930134]
[1768706839492,0.010512,95167.0,95153.0,0.02909461]
[1768706839688,0.010512,95167.0,95154.0,0.02909461]
[1768706839889,0.010512,95167.0,95155.0,0.0051562]
[1768706840087,0.010512,95167.0,95152.0,0.00930134]
[1768706842789,0.07807689,95170.0,95152.0,0.00930134]
[1768706842985,0.06756489,95170.0,95152.0,0.00930134]
[1768706843184,0.010512,95168.0,95152.0,0.00930134]
[1768706850899,0.06756489,95170.0,95152.0,0.00930134]
[1768706852500,0.07807689,95170.0,95152.0,0.00930134]
[1768706854801,0.010512,95168.0,95152.0,0.00930134]
[1768706856805,0.010512,95168.0,95156.0,0.0283111]
[1768706859899,0.010512,95168.0,95154.0,0.0283111]
[1768706860402,0.010512,95168.0,95155.0,0.05736136]
[1768706860703,0.010512,95168.0,95155.0,0.0283111]
[1768706863304,0.010512,95166.0,95155.0,0.0283111]
[1768706866007,0.010512,95169.0,95155.0,0.0283111]
[1768706866306,0.010512,95167.0,95155.0,0.0283111]
[1768706869512,0.010512,95169.0,95155.0,0.0283111]
[1768706869907,0.010512,95169.0,95157.0,0.0283111]
[1768706870611,0.010512,95169.0,95156.0,0.0283111]
[1768706872010,0.01131809,95171.0,95156.0,0.0283111]
[1768706872011,0.02183009,95171.0,95156.0,0.0283111]
[1768706872719,0.010512,95169.0,95156.0,0.0283111]
[1768706875917,0.010512,95169.0,95157.0,0.0283111]
[1768706877617,0.010512,95169.0,95156.0,0.0283111]
[1768706878117,0.010512,95169.0,95156.0,0.00437284]
[1768706879816,0.010512,95169.0,95154.0,0.00966125]
[1768706880514,0.010512,95169.0,95155.0,0.02887814]
[1768706880712,0.010512,95169.0,95154.0,0.00966125]
[1768706880918,0.010512,95169.0,95155.0,0.03872222]
[1768706881120,0.010512,95169.0,95155.0,0.00984419]
[1768706882319,0.01131809,95171.0,95155.0,0.00984419]
[1768706882520,0.105192,95172.0,95156.0,0.03872187]
[1768706882714,0.105192,95172.0,95156.0,0.00984419]
[1768706882912,0.11039383,95170.0,95156.0,0.00984419]
[1768706884921,0.12090583,95170.0,95156.0,0.00984419]
[1768706888123,0.11039383,95170.0,95156.0,0.00984419]
[1768706889129,0.01228797,95171.0,95156.0,0.00984419]
[1768706889317,0.105192,95172.0,95156.0,0.00984419]
[1768706889822,0.105192,95172.0,95157.0,0.02888503]
[1768706890127,0.105192,95172.0,95156.0,0.00984419]
[1768706890323,0.105192,95172.0,95157.0,0.02888498]
[1768706890524,0.105192,95172.0,95156.0,0.00984419]
[1768706890925,0.11759187,95172.0,95156.0,0.00984419]
[1768706892226,0.11039383,95170.0,95156.0,0.00984419]
[1768706893326,0.11759187,95172.0,95154.0,0.06082426]
[1768706893521,0.11759187,95172.0,95155.0,0.02879817]
[1768706893722,0.11759187,95172.0,95156.0,0.02879817]
[1768706893925,0.11759187,95172.0,95154.0,0.06082426]
[1768706894225,0.11759187,95172.0,95155.0,0.0287982]
[1768706894427,0.11759187,95172.0,95156.0,0.0287982]
[1768706894625,0.11759187,95172.0,95154.0,0.06082426]
[1768706894926,0.11759187,95172.0,95155.0,0.02879805]
[1768706895221,0.010512,95170.0,95156.0,0.02879805]
[1768706895427,0.010512,95170.0,95154.0,0.06082426]
[1768706895627,0.010512,95170.0,95155.0,0.0288008]
[1768706895819,0.010512,95170.0,95156.0,0.0288008]
[1768706896126,0.010512,95170.0,95154.0,0.06082426]
[1768706896322,0.010512,95170.0,95155.0,0.02880082]
[1768706896621,0.010512,95170.0,95156.0,0.02880082]
[1768706896823,0.010512,95170.0,95154.0,0.06082426]
[1768706897217,0.10707987,95172.0,95154.0,0.06082426]
[1768706897729,0.10707987,95172.0,95153.0,0.00984419]
[1768706898433,0.010512,95171.0,95153.0,0.00984419]
[1768706901131,0.10707987,95172.0,95154.0,0.010513]
[1768706901432,0.11039383,95170.0,95154.0,0.010513]
[1768706901833,0.11039383,95170.0,95153.0,0.00984419]
[1768706902633,0.12090583,95170.0,95153.0,0.00984419]
[1768706905634,0.12090583,95170.0,95153.0,0.02035819]
[1768706905936,0.11039383,95170.0,95153.0,0.02035819]
[1768706906737,0.11039383,95170.0,95154.0,0.02904889]
[1768706907036,0.11039383,95170.0,95155.0,0.02904889]
[1768706907231,0.11039383,95170.0,95156.0,0.02904889]
[1768706907431,0.11039383,95170.0,95157.0,0.02904889]
[1768706907636,0.11039383,95170.0,95155.0,0.010513]
[1768706907831,0.11039383,95170.0,95156.0,0.02905378]
[1768706908030,0.11039383,95170.0,95157.0,0.02905378]
[1768706908242,0.11039383,95170.0,95155.0,0.010513]
[1768706908436,0.11039383,95170.0,95156.0,0.02905422]
[1768706908632,0.10707987,95172.0,95157.0,0.02905422]
[1768706908840,0.10707987,95172.0,95155.0,0.010513]
[1768706909033,0.10707987,95172.0,95156.0,0.02905422]
[1768706909234,0.10707987,95172.0,95157.0,0.02905422]
[1768706909434,0.10707987,95172.0,95155.0,0.010513]
[1768706909734,0.10707987,95172.0,95156.0,0.02905432]
[1768706909931,0.10707987,95172.0,95157.0,0.02905432]
[1768706910140,0.10707987,95172.0,95158.0,0.02905432]
[1768706910342,0.10707987,95172.0,95155.0,0.010513]
[1768706910533,0.10707987,95172.0,95156.0,0.02905424]
[1768706910735,0.10707987,95172.0,95157.0,0.02905424]
[1768706910937,0.10707987,95172.0,95158.0,0.02905424]
[1768706911138,0.10707987,95172.0,95155.0,0.010513]
[1768706911338,0.10707987,95172.0,95156.0,0.02885604]
[1768706911638,0.10707987,95172.0,95157.0,0.02885604]
[1768706911838,0.10707987,95172.0,95158.0,0.02885604]
[1768706912041,0.10707987,95172.0,95155.0,0.010513]
[1768706912235,0.10707987,95172.0,95156.0,0.02885631]
[1768706912435,0.10707987,95172.0,95157.0,0.02885631]
[1768706912634,0.10707987,95172.0,95158.0,0.02885631]
[1768706912840,0.10707987,95172.0,95155.0,0.010513]
[1768706913136,0.10707987,95172.0,95156.0,0.02885657]
[1768706913435,0.10707987,95172.0,95157.0,0.02885657]
[1768706913638,0.11039383,95170.0,95158.0,0.02885657]
[1768706913935,0.11039383,95170.0,95155.0,0.010513]
[1768706914135,0.11039383,95170.0,95156.0,0.02885641]
[1768706914336,0.11039383,95170.0,95157.0,0.02885641]
[1768706914537,0.11039383,95170.0,95158.0,0.02885641]
[1768706914737,0.11039383,95170.0,95155.0,0.010513]
[1768706914943,0.11039383,95170.0,95156.0,0.02885577]
[1768706915142,0.11039383,95170.0,95157.0,0.02885577]
[1768706915344,0.11039383,95170.0,95158.0,0.02885577]
[1768706915535,0.11039383,95170.0,95155.0,0.010513]
[1768706915736,0.11039383,95170.0,95156.0,0.02885566]
[1768706915933,0.11039383,95170.0,95157.0,0.02885566]
[1768706916242,0.12767872,95211.0,95163.0,0.00912046]
[1768706916440,0.010507,95214.0,95195.0,0.06653886]
[1768706916647,0.010506,95218.0,95205.0,0.037791]
[1768706916838,0.010506,95222.0,95206.0,0.06664448]
[1768706917144,0.010506,95222.0,95207.0,0.02885348]
[1768706917353,0.002,95211.0,95199.0,0.037791]
[1768706917651,0.002,95211.0,95200.0,0.03460338]
[1768706917950,0.002,95211.0,95201.0,0.03460338]
[1768706918134,0.002,95211.0,95202.0,0.03460338]
[1768706918331,0.002,95211.0,95203.0,0.03460338]
[1768706918550,0.002,95211.0,95196.0,0.037791]
[1768706918733,0.002,95211.0,95197.0,0.034552]
[1768706919046,0.010506,95219.0,95200.0,0.00912046]
[1768706919343,0.11039383,95220.0,95201.0,0.034552]
[1768706919544,0.31382718,95220.0,95200.0,0.00912046]
[1768706919746,0.31382718,95220.0,95201.0,0.03452429]
[1768706919944,0.31382718,95220.0,95200.0,0.00912046]
[1768706920146,0.31382718,95220.0,95201.0,0.03452424]
[1768706920333,0.11039383,95220.0,95200.0,0.00912046]
[1768706920534,0.31382718,95220.0,95200.0,0.00912046]
[1768706920734,0.20343335,95219.0,95200.0,0.00912046]
[1768706921540,0.20343335,95219.0,95201.0,0.03786157]
[1768706921739,0.20343335,95219.0,95202.0,0.03786157]
[1768706921942,0.20343335,95219.0,95203.0,0.03786157]
[1768706922145,0.20343335,95219.0,95204.0,0.03786157]
[1768706922345,0.20343335,95219.0,95200.0,0.00912046]
[1768706922545,0.20343335,95218.0,95201.0,0.03786157]
[1768706922745,0.20343335,95219.0,95202.0,0.03786157]
[1768706922946,0.20343335,95219.0,95203.0,0.03786157]
[1768706923242,0.20343335,95218.0,95204.0,0.03786157]
[1768706923446,0.20343335,95219.0,95200.0,0.00912046]
[1768706923649,0.20343335,95219.0,95201.0,0.03786157]
[1768706923849,0.20343335,95218.0,95202.0,0.03786157]
[1768706924055,0.20343335,95219.0,95203.0,0.03786157]
[1768706924244,0.20343335,95219.0,95204.0,0.03786157]
[1768706924446,0.20343335,95218.0,95200.0,0.00912046]
[1768706924750,0.20343335,95218.0,95201.0,0.03786157]
[1768706924948,0.20343335,95217.0,95202.0,0.03786157]
[1768706925149,0.20343335,95218.0,95203.0,0.03786157]
[1768706925351,0.20343335,95218.0,95200.0,0.00912046]
[1768706925550,0.20343335,95217.0,95201.0,0.03786157]
[1768706925851,0.20343335,95218.0,95202.0,0.03786157]
[1768706926036,0.20343335,95218.0,95200.0,0.00912046]
[1768706926238,0.11996691,95220.0,95200.0,0.00912046]
[1768706926239,0.20343335,95217.0,95201.0,0.03786157]
[1768706926438,0.20343335,95218.0,95202.0,0.07565257]
[1768706926639,0.20343335,95218.0,95203.0,0.03786157]
[1768706926838,0.20343335,95216.0,95204.0,0.03786157]
[1768706927045,0.20343335,95216.0,95200.0,0.04691146]
[1768706927245,0.20343335,95216.0,95201.0,0.03786125]
[1768706927545,0.20343335,95216.0,95202.0,0.03786125]
[1768706927745,0.20343335,95216.0,95203.0,0.03786125]
[1768706927941,0.20343335,95216.0,95204.0,0.03786125]
[1768706928146,0.20343335,95216.0,95200.0,0.00912046]
[1768706928347,0.20343335,95216.0,95201.0,0.03786119]
[1768706928551,0.20343335,95216.0,95202.0,0.03786119]
[1768706928755,0.20343335,95214.0,95203.0,0.03786119]
[1768706928955,0.20343335,95217.0,95200.0,0.00912046]
[1768706929155,0.20343335,95217.0,95201.0,0.03786114]